[Event "*** Titled Tuesday Blitz"]
[Site "Chess.com"]
[Date "2018.12.04"]
[Round "4"]
[White "David_Paravyan"]
[Black "CaptainCasanova"]
[Result "1/2-1/2"]
[WhiteElo "2827"]
[BlackElo "2661"]
[TimeControl "180+2"]
[EndTime "13:51:22 PST"]
[Termination "Game drawn by repetition"]

1. c4 {[%clk 0:03:01.8]} 1... Nf6 {[%clk 0:02:49.8]} 2. Nc3 {[%clk 0:03:01]}
2... c6 {[%clk 0:02:48.6]} 3. d4 {[%clk 0:02:56.5]} 3... d5 {[%clk 0:02:49.3]}
4. Nf3 {[%clk 0:02:58]} 4... dxc4 {[%clk 0:02:48]} 5. e4 {[%clk 0:02:58.7]} 5...
b5 {[%clk 0:02:48.8]} 6. Be2 {[%clk 0:03:00.1]} 6... e6 {[%clk 0:02:14.1]} 7.
O-O {[%clk 0:02:59.3]} 7... Be7 {[%clk 0:02:08.6]} 8. a4 {[%clk 0:02:22.3]} 8...
b4 {[%clk 0:02:08.1]} 9. e5 {[%clk 0:02:23.3]} 9... bxc3 {[%clk 0:02:06.6]} 10.
exf6 {[%clk 0:02:23.4]} 10... Bxf6 {[%clk 0:02:08]} 11. bxc3 {[%clk 0:02:23.7]}
11... O-O {[%clk 0:02:08.5]} 12. Ne5 {[%clk 0:02:04.4]} 12... Nd7 {[%clk
0:01:48]} 13. Ba3 {[%clk 0:01:50.6]} 13... Re8 {[%clk 0:01:42.9]} 14. Nxc4
{[%clk 0:01:50.2]} 14... Be7 {[%clk 0:01:34.6]} 15. Nd6 {[%clk 0:01:40.7]} 15...
Bxd6 {[%clk 0:01:35.8]} 16. Bxd6 {[%clk 0:01:41.1]} 16... Nf6 {[%clk 0:01:34.5]}
17. Be5 {[%clk 0:01:40]} 17... Nd7 {[%clk 0:01:29.1]} 18. Bf4 {[%clk 0:01:24.7]}
18... a5 {[%clk 0:01:22.3]} 19. Rb1 {[%clk 0:01:20.7]} 19... Nb6 {[%clk
0:01:18.7]} 20. c4 {[%clk 0:01:12.7]} 20... Ba6 {[%clk 0:01:19.6]} 21. Qb3
{[%clk 0:01:12.4]} 21... Nc8 {[%clk 0:01:13]} 22. Qc3 {[%clk 0:01:09]} 22... Nb6
{[%clk 0:01:09.1]} 23. Qb3 {[%clk 0:01:03.3]} 23... Nc8 {[%clk 0:01:10]} 24.
Rfd1 {[%clk 0:01:02.7]} 24... Nd6 {[%clk 0:01:01.3]} 25. h3 {[%clk 0:00:46.3]}
25... Nf5 {[%clk 0:00:58.5]} 26. Qc3 {[%clk 0:00:46.5]} 26... Qh4 {[%clk
0:00:56]} 27. g4 {[%clk 0:00:31.8]} 27... Ne7 {[%clk 0:00:50.8]} 28. Qe3 {[%clk
0:00:31.4]} 28... h6 {[%clk 0:00:46]} 29. Rb6 {[%clk 0:00:29.8]} 29... Ng6
{[%clk 0:00:38.8]} 30. Bd6 {[%clk 0:00:27.3]} 30... Red8 {[%clk 0:00:32.9]} 31.
Bh2 {[%clk 0:00:19.7]} 31... e5 {[%clk 0:00:27.2]} 32. dxe5 {[%clk 0:00:16.1]}
32... Rxd1+ {[%clk 0:00:28.3]} 33. Bxd1 {[%clk 0:00:18]} 33... Bxc4 {[%clk
0:00:30]} 34. Bf3 {[%clk 0:00:10.2]} 34... Qxh3 {[%clk 0:00:24.9]} 35. Rxc6
{[%clk 0:00:10.1]} 35... Rb8 {[%clk 0:00:18.3]} 36. Rxc4 {[%clk 0:00:07.6]}
36... Rb1+ {[%clk 0:00:19.1]} 37. Rc1 {[%clk 0:00:08.6]} 37... Rxc1+ {[%clk
0:00:20.5]} 38. Qxc1 {[%clk 0:00:10.5]} 38... Qxf3 {[%clk 0:00:22.2]} 39. Qc4
{[%clk 0:00:06.9]} 39... Nh4 {[%clk 0:00:23.5]} 40. Qc8+ {[%clk 0:00:03.7]}
40... Kh7 {[%clk 0:00:24.2]} 41. Qc2+ {[%clk 0:00:05.1]} 41... g6 {[%clk
0:00:25.5]} 42. Kf1 {[%clk 0:00:04.4]} 42... Qg2+ {[%clk 0:00:26.6]} 43. Ke2
{[%clk 0:00:04.8]} 43... Qxh2 {[%clk 0:00:28.3]} 44. Qe4 {[%clk 0:00:03.9]}
44... Qh3 {[%clk 0:00:26.9]} 45. e6 {[%clk 0:00:04.2]} 45... fxe6 {[%clk
0:00:19]} 46. Qb7+ {[%clk 0:00:05.4]} 46... Kg8 {[%clk 0:00:20.4]} 47. Qc8+
{[%clk 0:00:06.9]} 47... Kf7 {[%clk 0:00:22]} 48. Qd7+ {[%clk 0:00:08.2]} 48...
Kf6 {[%clk 0:00:23.5]} 49. Qd8+ {[%clk 0:00:04.7]} 49... Ke5 {[%clk 0:00:25]}
50. Qc7+ {[%clk 0:00:03.8]} 50... Ke4 {[%clk 0:00:26.2]} 51. Qc4+ {[%clk
0:00:03.5]} 51... Ke5 {[%clk 0:00:26.7]} 52. Qc7+ {[%clk 0:00:03.9]} 52... Kf6
{[%clk 0:00:27.9]} 53. Qd8+ {[%clk 0:00:04.7]} 53... Ke5 {[%clk 0:00:29.4]} 54.
Qc7+ {[%clk 0:00:05.7]} 1/2-1/2

[Event "*** Titled Tuesday Blitz"]
[Site "Chess.com"]
[Date "2018.12.04"]
[Round "4"]
[White "saraswathii"]
[Black "Robert_Chessmood"]
[Result "0-1"]
[WhiteElo "2270"]
[BlackElo "2945"]
[TimeControl "180+2"]
[EndTime "13:51:22 PST"]
[Termination "Robert_Chessmood won by resignation"]

1. e4 {[%clk 0:03:01.9]} 1... c6 {[%clk 0:02:59.9]} 2. d3 {[%clk 0:03:03.1]}
2... d5 {[%clk 0:03:00.8]} 3. Nd2 {[%clk 0:03:04.7]} 3... e5 {[%clk 0:03:02.1]}
4. Ngf3 {[%clk 0:03:04.9]} 4... Bd6 {[%clk 0:03:03.1]} 5. g3 {[%clk 0:03:06]}
5... Nf6 {[%clk 0:03:03.6]} 6. Bg2 {[%clk 0:03:07.1]} 6... O-O {[%clk
0:03:04.9]} 7. O-O {[%clk 0:03:08.1]} 7... h6 {[%clk 0:03:05.4]} 8. c3 {[%clk
0:03:05.7]} 8... Be6 {[%clk 0:03:03.9]} 9. Qe2 {[%clk 0:03:06.2]} 9... Nbd7
{[%clk 0:03:04.7]} 10. Nh4 {[%clk 0:03:04]} 10... Re8 {[%clk 0:02:58.4]} 11.
Ndf3 {[%clk 0:02:56.9]} 11... Bf8 {[%clk 0:02:47.6]} 12. Nf5 {[%clk 0:02:51.6]}
12... Bxf5 {[%clk 0:02:45.1]} 13. exf5 {[%clk 0:02:52.1]} 13... Nc5 {[%clk
0:02:36.3]} 14. Nxe5 {[%clk 0:02:46.7]} 14... Nxd3 {[%clk 0:02:34]} 15. Qxd3
{[%clk 0:02:47]} 15... Rxe5 {[%clk 0:02:35.1]} 16. Bf4 {[%clk 0:02:47.8]} 16...
Re8 {[%clk 0:02:35.1]} 17. Rad1 {[%clk 0:02:38.7]} 17... Qb6 {[%clk 0:02:29.3]}
18. Qc2 {[%clk 0:02:36.1]} 18... a5 {[%clk 0:02:22.9]} 19. Be3 {[%clk
0:02:35.7]} 19... Bc5 {[%clk 0:02:20.5]} 20. Bxc5 {[%clk 0:02:35]} 20... Qxc5
{[%clk 0:02:22.4]} 21. Rfe1 {[%clk 0:02:36.2]} 21... b5 {[%clk 0:02:18.2]} 22.
h3 {[%clk 0:02:33]} 22... a4 {[%clk 0:02:17.8]} 23. a3 {[%clk 0:02:24.9]} 23...
Re7 {[%clk 0:02:17.2]} 24. Rxe7 {[%clk 0:02:24.3]} 24... Qxe7 {[%clk 0:02:17.7]}
25. Qd2 {[%clk 0:02:23]} 25... Re8 {[%clk 0:02:17.5]} 26. Kf1 {[%clk 0:02:23.5]}
26... Nd7 {[%clk 0:02:07.7]} 27. Re1 {[%clk 0:02:18.4]} 27... Qxe1+ {[%clk
0:02:08.6]} 28. Qxe1 {[%clk 0:02:20.3]} 28... Rxe1+ {[%clk 0:02:10.2]} 29. Kxe1
{[%clk 0:02:22.2]} 29... Kf8 {[%clk 0:02:10.6]} 30. Ke2 {[%clk 0:02:20.9]} 30...
Ke7 {[%clk 0:02:11.8]} 31. Ke3 {[%clk 0:02:21.3]} 31... Kd6 {[%clk 0:02:12.4]}
32. Kd4 {[%clk 0:02:12.8]} 32... Nb6 {[%clk 0:02:02.3]} 33. Bf1 {[%clk
0:02:09.7]} 33... f6 {[%clk 0:02:00.6]} 34. f4 {[%clk 0:01:53.4]} 34... Nc8
{[%clk 0:01:59.4]} 35. g4 {[%clk 0:01:49.1]} 35... Nb6 {[%clk 0:01:57.8]} 36.
Be2 {[%clk 0:01:49]} 36... Nd7 {[%clk 0:01:57.4]} 37. Bd1 {[%clk 0:01:44.6]}
37... Kc7 {[%clk 0:01:44.7]} 38. Be2 {[%clk 0:01:35.6]} 38... Nb8 {[%clk
0:01:36]} 39. Bd1 {[%clk 0:01:26.4]} 39... Kd6 {[%clk 0:01:31.8]} 40. Be2 {[%clk
0:01:24.2]} 40... c5+ {[%clk 0:01:28.8]} 41. Ke3 {[%clk 0:01:25.1]} 41... c4
{[%clk 0:01:30.1]} 42. Bf3 {[%clk 0:01:21.8]} 42... Kc5 {[%clk 0:01:29]} 43. Bg2
{[%clk 0:01:04.6]} 43... Nc6 {[%clk 0:01:22.4]} 44. Bh1 {[%clk 0:00:59.7]} 44...
Na5 {[%clk 0:01:23.3]} 45. Bf3 {[%clk 0:00:57]} 45... Nb3 {[%clk 0:01:24.2]} 46.
Bg2 {[%clk 0:00:48.5]} 46... Nc1 {[%clk 0:01:22]} 47. Bf1 {[%clk 0:00:47.5]}
47... Nb3 {[%clk 0:01:17.4]} 48. Bg2 {[%clk 0:00:47.9]} 48... d4+ {[%clk
0:01:17.9]} 49. cxd4+ {[%clk 0:00:48.3]} 49... Nxd4 {[%clk 0:01:18.6]} 50. Be4
{[%clk 0:00:48]} 50... Nb3 {[%clk 0:01:18.5]} 51. Bc2 {[%clk 0:00:45.7]} 51...
Na5 {[%clk 0:01:18]} 52. Be4 {[%clk 0:00:45.7]} 52... c3 {[%clk 0:01:18.1]} 53.
bxc3 {[%clk 0:00:44]} 53... Nc4+ {[%clk 0:01:19.3]} 54. Kd3 {[%clk 0:00:39.8]}
54... Nxa3 {[%clk 0:01:21.2]} 55. Bb7 {[%clk 0:00:39.8]} 55... Nc4 {[%clk
0:01:21.8]} 56. Kc2 {[%clk 0:00:35.6]} 56... Ne3+ {[%clk 0:01:22.1]} 57. Kd3
{[%clk 0:00:28.2]} 57... Nd5 {[%clk 0:01:23.1]} 58. h4 {[%clk 0:00:21]} 58...
Nxf4+ {[%clk 0:01:21.2]} 59. Kc2 {[%clk 0:00:21.1]} 59... Nd5 {[%clk 0:01:19.7]}
60. Kd3 {[%clk 0:00:17.9]} 60... Nb6 {[%clk 0:01:20]} 61. Be4 {[%clk 0:00:18]}
61... Nc4 {[%clk 0:01:21]} 62. h5 {[%clk 0:00:18.5]} 62... Ne5+ {[%clk
0:01:21.9]} 63. Kc2 {[%clk 0:00:19.2]} 63... Nxg4 {[%clk 0:01:23.8]} 64. Kb2
{[%clk 0:00:19.9]} 64... Ne5 {[%clk 0:01:24.9]} 65. Kc2 {[%clk 0:00:20.3]} 65...
Nc4 {[%clk 0:01:25.7]} 66. Bd3 {[%clk 0:00:19.8]} 66... Ne3+ {[%clk 0:01:26.2]}
67. Kd2 {[%clk 0:00:20]} 67... Nd5 {[%clk 0:01:27.4]} 68. Bb1 {[%clk 0:00:20.1]}
68... Nf4 {[%clk 0:01:28.1]} 69. Ke3 {[%clk 0:00:20.1]} 0-1

[Event "*** Titled Tuesday Blitz"]
[Site "Chess.com"]
[Date "2018.12.04"]
[Round "4"]
[White "StephenDedalus83"]
[Black "MartinNeu"]
[Result "1-0"]
[WhiteElo "2730"]
[BlackElo "2477"]
[TimeControl "180+2"]
[EndTime "13:51:32 PST"]
[Termination "StephenDedalus83 won on time"]

1. e4 {[%clk 0:03:01.9]} 1... c5 {[%clk 0:02:46.5]} 2. Nf3 {[%clk 0:03:02.6]}
2... d6 {[%clk 0:02:47.6]} 3. d4 {[%clk 0:03:03.7]} 3... cxd4 {[%clk 0:02:48.7]}
4. Nxd4 {[%clk 0:03:05.6]} 4... Nf6 {[%clk 0:02:50.2]} 5. Nc3 {[%clk 0:03:06.8]}
5... a6 {[%clk 0:02:51.9]} 6. h3 {[%clk 0:03:08]} 6... b5 {[%clk 0:02:43.1]} 7.
g4 {[%clk 0:03:03.9]} 7... Bb7 {[%clk 0:02:42.2]} 8. Bg2 {[%clk 0:03:04.5]} 8...
b4 {[%clk 0:02:13.9]} 9. Nd5 {[%clk 0:03:03.3]} 9... Nc6 {[%clk 0:02:03.9]} 10.
Nxf6+ {[%clk 0:02:31.4]} 10... gxf6 {[%clk 0:02:04.3]} 11. Be3 {[%clk
0:02:11.5]} 11... Rc8 {[%clk 0:01:40]} 12. Qd2 {[%clk 0:01:59.5]} 12... a5
{[%clk 0:01:22.4]} 13. O-O-O {[%clk 0:02:00.2]} 13... Ne5 {[%clk 0:01:19.4]} 14.
b3 {[%clk 0:02:01.3]} 14... Qc7 {[%clk 0:01:09.5]} 15. f4 {[%clk 0:01:59.4]}
15... Nd7 {[%clk 0:01:10.3]} 16. Kb1 {[%clk 0:01:54.3]} 16... Nc5 {[%clk
0:01:06.2]} 17. Nb5 {[%clk 0:01:51.9]} 17... Qb6 {[%clk 0:01:05]} 18. c4 {[%clk
0:01:44.3]} 18... bxc3 {[%clk 0:00:53.6]} 19. Nxc3 {[%clk 0:01:44.4]} 19... Qb4
{[%clk 0:00:43]} 20. Nd5 {[%clk 0:01:39.9]} 20... Qb5 {[%clk 0:00:29.4]} 21. Rc1
{[%clk 0:01:20.7]} 21... Bg7 {[%clk 0:00:17.3]} 22. Bxc5 {[%clk 0:01:20.5]}
22... dxc5 {[%clk 0:00:16.6]} 23. Rhd1 {[%clk 0:01:00]} 23... Bxd5 {[%clk
0:00:17]} 24. Qxd5 {[%clk 0:00:57.9]} 24... O-O {[%clk 0:00:18.1]} 25. Qc4
{[%clk 0:00:47.1]} 25... Qb6 {[%clk 0:00:17.7]} 26. Bf1 {[%clk 0:00:41.6]} 26...
Rfe8 {[%clk 0:00:17.1]} 27. Rc2 {[%clk 0:00:40.5]} 27... Bh6 {[%clk 0:00:17.5]}
28. Rf2 {[%clk 0:00:35.6]} 28... Red8 {[%clk 0:00:17.3]} 29. Rd3 {[%clk
0:00:34.4]} 29... Qb8 {[%clk 0:00:15.8]} 30. g5 {[%clk 0:00:34.8]} 30... Bg7
{[%clk 0:00:16.7]} 31. gxf6 {[%clk 0:00:35.6]} 31... Bxf6 {[%clk 0:00:16.9]} 32.
e5 {[%clk 0:00:36.9]} 32... Bg7 {[%clk 0:00:18]} 33. Rg2 {[%clk 0:00:37.8]}
33... Rxd3 {[%clk 0:00:18.7]} 34. Bxd3 {[%clk 0:00:38]} 34... Qb7 {[%clk
0:00:20.2]} 35. Be4 {[%clk 0:00:37.7]} 35... Qd7 {[%clk 0:00:21.3]} 36. Qc2
{[%clk 0:00:36]} 36... h6 {[%clk 0:00:21.3]} 37. Bf5 {[%clk 0:00:36.7]} 37... e6
{[%clk 0:00:22.6]} 38. Bh7+ {[%clk 0:00:37.2]} 38... Kf8 {[%clk 0:00:23.5]} 39.
Bd3 {[%clk 0:00:37.5]} 39... Rd8 {[%clk 0:00:24.3]} 40. Bc4 {[%clk 0:00:37.8]}
40... Qd1+ {[%clk 0:00:24.2]} 41. Qxd1 {[%clk 0:00:38.4]} 41... Rxd1+ {[%clk
0:00:26.1]} 42. Kc2 {[%clk 0:00:39.8]} 42... Rd4 {[%clk 0:00:26.9]} 43. Rf2
{[%clk 0:00:39.1]} 43... Ke7 {[%clk 0:00:28.2]} 44. Kb2 {[%clk 0:00:40.3]} 44...
h5 {[%clk 0:00:29.3]} 45. Ka3 {[%clk 0:00:41.4]} 45... Bh6 {[%clk 0:00:30]} 46.
f5 {[%clk 0:00:41.7]} 46... Rd2 {[%clk 0:00:24.1]} 47. Rf3 {[%clk 0:00:37.5]}
47... Rh2 {[%clk 0:00:20]} 48. fxe6 {[%clk 0:00:38]} 48... fxe6 {[%clk
0:00:20.1]} 49. Rf6 {[%clk 0:00:39.5]} 49... Bc1+ {[%clk 0:00:21]} 50. Ka4
{[%clk 0:00:40.6]} 50... Rxa2+ {[%clk 0:00:20.8]} 51. Kb5 {[%clk 0:00:41.7]}
51... Rd2 {[%clk 0:00:14]} 52. Rxe6+ {[%clk 0:00:42.5]} 52... Kd7 {[%clk
0:00:15.3]} 53. Ra6 {[%clk 0:00:42.1]} 53... Bb2 {[%clk 0:00:16.2]} 54. Ra7+
{[%clk 0:00:42.6]} 54... Ke8 {[%clk 0:00:16.9]} 55. e6 {[%clk 0:00:43.2]} 55...
Rd8 {[%clk 0:00:10.5]} 56. Kc6 {[%clk 0:00:42.9]} 56... Be5 {[%clk 0:00:09.5]}
57. Bb5 {[%clk 0:00:42.5]} 57... Bb8 {[%clk 0:00:02.6]} 58. Rh7 {[%clk
0:00:41.4]} 58... Rc8+ {[%clk 0:00:02.3]} 59. Kb7+ {[%clk 0:00:42.2]} 1-0

[Event "*** Titled Tuesday Blitz"]
[Site "Chess.com"]
[Date "2018.12.04"]
[Round "4"]
[White "artichaud"]
[Black "WorldChampionBulletChess"]
[Result "1-0"]
[WhiteElo "2130"]
[BlackElo "2058"]
[TimeControl "180+2"]
[EndTime "13:51:35 PST"]
[Termination "artichaud won by checkmate"]

1. d4 {[%clk 0:03:01.9]} 1... Nf6 {[%clk 0:03:00.3]} 2. Bg5 {[%clk 0:03:01.6]}
2... e6 {[%clk 0:02:57.6]} 3. e4 {[%clk 0:02:57.1]} 3... Be7 {[%clk 0:02:54.3]}
4. Nd2 {[%clk 0:02:56.8]} 4... h6 {[%clk 0:02:46.6]} 5. Bxf6 {[%clk 0:02:55.1]}
5... Bxf6 {[%clk 0:02:48.5]} 6. e5 {[%clk 0:02:56.6]} 6... Be7 {[%clk
0:02:49.2]} 7. Qg4 {[%clk 0:02:57.2]} 7... g5 {[%clk 0:02:39.6]} 8. h4 {[%clk
0:02:54.4]} 8... d6 {[%clk 0:02:29.3]} 9. hxg5 {[%clk 0:02:52.2]} 9... Bxg5
{[%clk 0:02:29.3]} 10. Ngf3 {[%clk 0:02:47]} 10... Be7 {[%clk 0:01:49.6]} 11.
Qg7 {[%clk 0:02:40.3]} 11... Rf8 {[%clk 0:01:40.6]} 12. Rxh6 {[%clk 0:02:36.4]}
12... Nd7 {[%clk 0:01:38.1]} 13. O-O-O {[%clk 0:02:31.6]} 13... c5 {[%clk
0:01:22.9]} 14. Ne4 {[%clk 0:02:15.4]} 14... d5 {[%clk 0:01:18.6]} 15. Nxc5
{[%clk 0:01:45]} 15... Nxc5 {[%clk 0:01:18.6]} 16. dxc5 {[%clk 0:01:45.8]} 16...
Bxc5 {[%clk 0:01:20.3]} 17. Rh8 {[%clk 0:01:37.5]} 17... Bd7 {[%clk 0:01:19.2]}
18. Ng5 {[%clk 0:01:01.3]} 18... Qe7 {[%clk 0:00:57.2]} 19. Rxf8+ {[%clk
0:00:52.9]} 19... Qxf8 {[%clk 0:00:59.1]} 20. Qxf8+ {[%clk 0:00:52.2]} 20...
Kxf8 {[%clk 0:00:59]} 21. Nh3 {[%clk 0:00:52.2]} 21... Rc8 {[%clk 0:00:57.5]}
22. Bd3 {[%clk 0:00:52.2]} 22... b5 {[%clk 0:00:51]} 23. Kb1 {[%clk 0:00:52.6]}
23... a5 {[%clk 0:00:51.6]} 24. f4 {[%clk 0:00:52.3]} 24... Ke7 {[%clk
0:00:47.5]} 25. a3 {[%clk 0:00:34.7]} 25... Rg8 {[%clk 0:00:42.7]} 26. Bf1
{[%clk 0:00:35.2]} 26... Bc6 {[%clk 0:00:42.3]} 27. c3 {[%clk 0:00:34.2]} 27...
Rg3 {[%clk 0:00:37.3]} 28. Rd3 {[%clk 0:00:30.7]} 28... Rg4 {[%clk 0:00:25.4]}
29. g3 {[%clk 0:00:26.6]} 29... b4 {[%clk 0:00:19.9]} 30. Be2 {[%clk 0:00:22.4]}
30... Rg8 {[%clk 0:00:17.8]} 31. cxb4 {[%clk 0:00:21.8]} 31... axb4 {[%clk
0:00:19.7]} 32. axb4 {[%clk 0:00:22.6]} 32... Bxb4 {[%clk 0:00:21.6]} 33. Rb3
{[%clk 0:00:22.6]} 33... Be1 {[%clk 0:00:21.8]} 34. Ng5 {[%clk 0:00:23.1]} 34...
Rh8 {[%clk 0:00:18.9]} 35. Bb5 {[%clk 0:00:22.7]} 35... Ba8 {[%clk 0:00:18.4]}
36. Ra3 {[%clk 0:00:22.2]} 36... Bb4 {[%clk 0:00:15.8]} 37. Ra7+ {[%clk
0:00:22.3]} 37... Kf8 {[%clk 0:00:10.4]} 38. Rxa8+ {[%clk 0:00:22.7]} 38... Kg7
{[%clk 0:00:11.8]} 39. Rxh8 {[%clk 0:00:23.5]} 39... Kxh8 {[%clk 0:00:13.7]} 40.
Nxf7+ {[%clk 0:00:24.8]} 40... Kg7 {[%clk 0:00:15.6]} 41. Ng5 {[%clk 0:00:25.5]}
41... Be1 {[%clk 0:00:17]} 42. Nxe6+ {[%clk 0:00:26]} 42... Kf7 {[%clk
0:00:17.9]} 43. Nc7 {[%clk 0:00:27]} 43... Bxg3 {[%clk 0:00:19]} 44. Nxd5 {[%clk
0:00:28]} 44... Ke6 {[%clk 0:00:19.3]} 45. Bc4 {[%clk 0:00:27.3]} 45... Kf5
{[%clk 0:00:18.6]} 46. Kc2 {[%clk 0:00:28.3]} 46... Ke4 {[%clk 0:00:18.2]} 47.
b4 {[%clk 0:00:28.4]} 47... Kd4 {[%clk 0:00:19.5]} 48. Kb3 {[%clk 0:00:29.6]}
48... Ke4 {[%clk 0:00:15.1]} 49. e6 {[%clk 0:00:30.1]} 49... Bh4 {[%clk
0:00:16]} 50. b5 {[%clk 0:00:29.1]} 50... Bd8 {[%clk 0:00:16.8]} 51. b6 {[%clk
0:00:29.1]} 51... Kd4 {[%clk 0:00:18.2]} 52. b7 {[%clk 0:00:29.5]} 52... Kc5
{[%clk 0:00:19.6]} 53. b8=Q {[%clk 0:00:30]} 53... Bc7 {[%clk 0:00:21.4]} 54.
Qxc7+ {[%clk 0:00:30.3]} 54... Kd4 {[%clk 0:00:23.3]} 55. Qe5+ {[%clk 0:00:30]}
55... Kc5 {[%clk 0:00:24.4]} 56. Qe3+ {[%clk 0:00:30.7]} 56... Kc6 {[%clk
0:00:25.8]} 57. e7 {[%clk 0:00:31.1]} 57... Kd6 {[%clk 0:00:27.7]} 58. Qe5+
{[%clk 0:00:26.9]} 58... Kc5 {[%clk 0:00:28.8]} 59. Qc7+ {[%clk 0:00:24.3]}
59... Kd4 {[%clk 0:00:28.6]} 60. Qb6+ {[%clk 0:00:23.9]} 60... Ke4 {[%clk
0:00:23.6]} 61. e8=Q+ {[%clk 0:00:24.5]} 61... Kf5 {[%clk 0:00:24]} 62. Qee6#
{[%clk 0:00:24.8]} 1-0

[Event "*** Titled Tuesday Blitz"]
[Site "Chess.com"]
[Date "2018.12.04"]
[Round "4"]
[White "Fianchettoed-Tower"]
[Black "Thjop"]
[Result "0-1"]
[WhiteElo "2469"]
[BlackElo "2664"]
[TimeControl "180+2"]
[EndTime "13:51:48 PST"]
[Termination "Thjop won by resignation"]

1. e4 {[%clk 0:03:01.6]} 1... e6 {[%clk 0:02:58.7]} 2. d4 {[%clk 0:03:02.8]}
2... d5 {[%clk 0:03:00]} 3. Nd2 {[%clk 0:03:04.1]} 3... c5 {[%clk 0:02:55.6]} 4.
Ngf3 {[%clk 0:03:04.4]} 4... cxd4 {[%clk 0:02:55.1]} 5. Nxd4 {[%clk 0:03:06.3]}
5... Nf6 {[%clk 0:02:55.9]} 6. Bb5+ {[%clk 0:03:01.6]} 6... Bd7 {[%clk
0:02:52.8]} 7. Qe2 {[%clk 0:02:58.3]} 7... a6 {[%clk 0:02:46.5]} 8. Bxd7+ {[%clk
0:02:57.4]} 8... Nbxd7 {[%clk 0:02:47.1]} 9. O-O {[%clk 0:02:53.2]} 9... Bc5
{[%clk 0:02:44]} 10. N4b3 {[%clk 0:02:46.2]} 10... Bd6 {[%clk 0:02:34.4]} 11. c4
{[%clk 0:02:45.5]} 11... dxe4 {[%clk 0:02:16.9]} 12. Nxe4 {[%clk 0:02:44.8]}
12... Nxe4 {[%clk 0:02:18.4]} 13. Qxe4 {[%clk 0:02:46.5]} 13... Qc7 {[%clk
0:02:19.8]} 14. Qh4 {[%clk 0:02:38.1]} 14... Rc8 {[%clk 0:02:06.2]} 15. Rd1
{[%clk 0:01:55]} 15... Be7 {[%clk 0:01:56.1]} 16. Bg5 {[%clk 0:01:44.9]} 16...
Bxg5 {[%clk 0:01:45.5]} 17. Qxg5 {[%clk 0:01:46.8]} 17... O-O {[%clk 0:01:46]}
18. Rac1 {[%clk 0:01:30.7]} 18... Nf6 {[%clk 0:01:43.3]} 19. Qa5 {[%clk
0:01:15.9]} 19... Qf4 {[%clk 0:01:25.7]} 20. g3 {[%clk 0:01:12.7]} 20... Qg4
{[%clk 0:01:05.8]} 21. Rd4 {[%clk 0:00:58.8]} 21... Qf3 {[%clk 0:01:05.6]} 22.
Qc3 {[%clk 0:00:42.1]} 22... Qc6 {[%clk 0:01:02.2]} 23. Rcd1 {[%clk 0:00:34.9]}
23... e5 {[%clk 0:00:56.6]} 24. Rh4 {[%clk 0:00:29.4]} 24... Rfe8 {[%clk
0:00:47.2]} 25. Qd3 {[%clk 0:00:21.3]} 25... e4 {[%clk 0:00:45.3]} 26. Qd6
{[%clk 0:00:16.9]} 26... Qxd6 {[%clk 0:00:42]} 27. Rxd6 {[%clk 0:00:17]} 27...
Rxc4 {[%clk 0:00:43.3]} 28. Rb6 {[%clk 0:00:16.2]} 28... Re7 {[%clk 0:00:38.5]}
29. Na5 {[%clk 0:00:15.2]} 29... Rcc7 {[%clk 0:00:35.2]} 30. Rd6 {[%clk
0:00:10.2]} 30... h5 {[%clk 0:00:31.9]} 31. Rf4 {[%clk 0:00:10.3]} 31... Rc1+
{[%clk 0:00:31.1]} 32. Kg2 {[%clk 0:00:10.9]} 32... Rc2 {[%clk 0:00:32.2]} 33.
Kh3 {[%clk 0:00:04.8]} 33... Rxb2 {[%clk 0:00:30.9]} 34. Rd8+ {[%clk 0:00:05.1]}
34... Kh7 {[%clk 0:00:31.4]} 35. Rf5 {[%clk 0:00:07]} 35... Rxa2 {[%clk
0:00:28.8]} 36. Nc4 {[%clk 0:00:06.6]} 36... Kg6 {[%clk 0:00:26.4]} 37. Rf4
{[%clk 0:00:06.7]} 37... Rc2 {[%clk 0:00:19.9]} 38. Ne3 {[%clk 0:00:06.5]} 38...
Rc5 {[%clk 0:00:20.3]} 39. Ng2 {[%clk 0:00:06.6]} 39... a5 {[%clk 0:00:21.3]}
40. Nh4+ {[%clk 0:00:07.9]} 40... Kh7 {[%clk 0:00:22.7]} 41. Ra8 {[%clk
0:00:05.2]} 41... b6 {[%clk 0:00:21.2]} 42. Nf5 {[%clk 0:00:06.1]} 42... Rd7
{[%clk 0:00:22.2]} 43. Ne3 {[%clk 0:00:06.8]} 43... Rcc7 {[%clk 0:00:19.9]} 44.
Rb8 {[%clk 0:00:07.2]} 44... Rb7 {[%clk 0:00:20.8]} 45. Rc8 {[%clk 0:00:06.8]}
45... b5 {[%clk 0:00:21.8]} 46. Rf5 {[%clk 0:00:07.3]} 46... a4 {[%clk
0:00:21.7]} 47. Ra8 {[%clk 0:00:08.7]} 47... Ra7 {[%clk 0:00:22.7]} 48. Rxa7
{[%clk 0:00:08.8]} 48... Rxa7 {[%clk 0:00:24.6]} 49. Rxb5 {[%clk 0:00:09.9]}
49... a3 {[%clk 0:00:25.8]} 50. Rb1 {[%clk 0:00:11.4]} 50... a2 {[%clk
0:00:26.6]} 51. Ra1 {[%clk 0:00:12.6]} 51... g5 {[%clk 0:00:25.6]} 52. Nc4
{[%clk 0:00:11.9]} 52... Nd5 {[%clk 0:00:24.5]} 53. Nd6 {[%clk 0:00:12.7]} 53...
Nc3 {[%clk 0:00:22.7]} 54. Kg2 {[%clk 0:00:11.8]} 54... Kg6 {[%clk 0:00:23.5]}
55. Kf1 {[%clk 0:00:08.8]} 55... Ra6 {[%clk 0:00:22.5]} 56. Nc4 {[%clk
0:00:08.6]} 56... Ra4 {[%clk 0:00:22.5]} 57. Nd2 {[%clk 0:00:09.4]} 57... Rb4
{[%clk 0:00:22.2]} 58. Kg2 {[%clk 0:00:10.2]} 58... Rb2 {[%clk 0:00:22.9]} 59.
Nc4 {[%clk 0:00:07.8]} 59... Rb1 {[%clk 0:00:21.9]} 0-1